Cogmind - Beta 14 @@@ ROGUE MODE // 2025.03.03 @ 21:21:14 Player: krugman Result: Destroyed by Y-45 Defender with Heavy Assault Rifle Performance ------------- Evolutions (1) 500 Regions Visited (2) 400 Robots Destroyed (18) 90 Value Destroyed (109) 109 Prototype IDs (0) 0 Alien Tech Used (0) 0 Bonus (0) 0 TOTAL SCORE: 1099 Bonus ------- None Cogmind --------- Core Integrity 0/400 Matter 312/450 Energy 100/100 System Corruption 0% Temperature Cool (9) Movement Core (750) Ox14 Location -9/Materials Parts ------- > --- POWER (2) -------- (None) > --- PROPULSION (2) --- (None) > --- UTILITY (3) ------ High-capacity Storage Unit Large Matter Pod > --- WEAPON (2) ------- (None) > --- INVENTORY (20) --- Small Storage Unit Improved Terrain Scanner Seismic Detector Seismic Detector Utility Shielding Utility Shielding Utility Shielding Assault Rifle Mining Laser Mining Laser Peak State ------------ > --- POWER ------------ Light Ion Engine > --- PROPULSION ------- Light Treads Light Treads > --- UTILITY ---------- High-capacity Storage Unit Improved Terrain Scanner > --- WEAPON ----------- Light Assault Rifle Light Assault Rifle > --- INVENTORY -------- Light Ion Engine Small Storage Unit Large Matter Pod Seismic Detector Seismic Detector Utility Shielding Utility Shielding Assault Rifle Mining Laser Mining Laser [Rating: 10] Favorites ----------- Power Light Ion Engine Engine Light Ion Engine Propulsion Light Treads Treads Light Treads Utility Improved Terrain Scanner Device Improved Terrain Scanner Storage Small Storage Unit Protection Utility Shielding Weapon Light Assault Rifle Ballistic Gun Light Assault Rifle Build | -11 -10 -9 ------- Run | Yrd Mat Mat Slots Evolved 2 | . . 2 Power 1 | . . 1 Propulsion . | . . . Utility 1 | . . 1 Weapon . | . . . Parts Attached 14 | 8 4 2 Power 2 | 1 . 1 Engine 2 | 1 . 1 Core . | . . . Reactor . | . . . Propulsion 2 | 2 . . Treads 2 | 2 . . Leg . | . . . Wheel . | . . . Hover . | . . . Flight . | . . . Utility 8 | 3 4 1 Device 3 | 2 1 . Storage 4 | 1 2 1 Processor . | . . . Hackware . | . . . Protection 1 | . 1 . Artifact . | . . . Weapon 2 | 2 . . Energy Gun . | . . . Energy Cannon . | . . . Ballistic Gun 2 | 2 . . Ballistic Cannon . | . . . Launcher . | . . . Special Weapon . | . . . Impact Weapon . | . . . Slashing Weapon . | . . . Piercing Weapon . | . . . Special Melee Weapon . | . . . Unidentified Prototypes . | . . . Parts Lost 7 | . . 7 Power 2 | . . 2 Propulsion 2 | . . 2 Utility 1 | . . 1 Weapon 2 | . . 2 Highest Loss Streak 5 | . . 5 To Critical Strikes . | . . . Average Slot Usage (%) 87 | . 100 58 Engine 12 | . 14 8 Treads 22 | . 28 10 Device 7 | . 10 . Storage 15 | . 14 18 Protection 5 | . 3 9 Ballistic Gun 22 | . 28 11 Peak Build Rating 10 | 9 10 9 Average Rating 8 | 8 8 6 On Entrance 5 | . 9 8 Naked Turns . | . . . Heaviest Build 50 | 11 50 49 Greatest Support 40 | 40 40 40 Greatest Overweight (x) 15 | 1 1 15 Average Overweight (x) . | . . 5 Largest Inventory Capacity 20 | 8 20 20 Average Capacity 12 | 7 17 20 Most Carried 12 | 8 12 11 Average Carried 6 | 5 8 10 Final Capacity 20 | 8 20 20 Final Carried 12 | 8 12 10 Class Distribution -------------------- 100% | Mutant Dominant Class ---------------- Mutant | -10/Materials Mutant | -9/Materials Resources | -11 -10 -9 ----------- Run | Yrd Mat Mat Matter Collected 479 | 398 64 17 Remotely . | . . . Salvage Created 475 | 337 . 138 Parts 42 | 34 . 8 Haulers Intercepted . | . . . Recyclers Shooed 1 | . . 1 Parts Field Recycled . | . . . Retrieved Matter . | . . . Parts Self-Destructed . | . . . Prevented . | . . . Kills | -11 -10 -9 ------- Run | Yrd Mat Mat Combat Hostiles Destroyed 3 | . . 3 Guns 3 | . . 3 Classes Destroyed 4 | 3 . 1 Worker 4 | 4 . . Tunneler 9 | 9 . . Recycler 2 | 1 . 1 Swarmer 3 | . . 3 Best Kill Streak 3 | 3 . 3 Combat Bots Only 3 | . . 3 Max Kills in Single Turn 1 | 1 . 1 Gunslinging . | . . . Exploded . | . . . Melee . | . . . Uniques/NPCs Destroyed . | . . . Combat | -11 -10 -9 -------- Run | Yrd Mat Mat Hostile Shots Fired 128 | . 3 125 Missed 41 | . 1 40 Damage Taken 1166 | . 20 1146 Core 405 | . . 405 Absorbed by Shields . | . . . Redirected to Shielding 51 | . . 51 Core Remaining (%) 100 | 100 100 . Volleys Fired 82 | 59 1 22 Largest 2 | 2 2 2 Hottest 40 | 40 40 40 Shots Fired 157 | 118 2 37 Gun 157 | 118 2 37 Cannon . | . . . Launcher . | . . . Special . | . . . Kinetic 157 | 118 2 37 Thermal . | . . . Explosive . | . . . Electromagnetic . | . . . Robot Hit Streak 7 | 7 1 6 Robot Miss Streak 5 | 5 1 3 Penetration Max . | . . . Secondary Targets 1 | . . 1 Max Gunslinging Chain 1 | . . 1 Shots Hit Robots 79 | 56 1 22 Core Hits 36 | 27 . 9 Critical Kills . | . . . Critical Parts Destroyed 1 | 1 . . Critical Strikes 1 | 1 . . Destroy 1 | 1 . . Melee Attacks . | . . . Impact . | . . . Slashing . | . . . Piercing . | . . . Sneak Attacks . | . . . Combat Hostiles . | . . . Follow-up Attacks . | . . . Damage Inflicted 617 | 419 8 190 Guns 617 | 419 8 190 Cannons . | . . . Explosions . | . . . Melee . | . . . Ramming . | . . . Kinetic 617 | 419 8 190 Thermal . | . . . Explosive . | . . . Electromagnetic . | . . . Impact . | . . . Slashing . | . . . Piercing . | . . . Highest Corruption . | . . . Average Corruption . | . . . Corruption Purged . | . . . Corruption Blocked . | . . . Overload Shots . | . . . Overflow Damage . | . . . Projectiles . | . . . Explosions . | . . . Melee . | . . . Knockbacks . | . . . Impact . | . . . Kinetic . | . . . Secondary . | . . . Self-Inflicted Damage . | . . . Shots . | . . . Rammed . | . . . Targets Rammed . | . . . Kicked . | . . . Crushed . | . . . Highest Temperature 8 | . . 8 Average Temperature 3 | . . 3 Received Heat Transfer 345 | . 12 333 Siege Activations . | . . . Robots Corrupted . | . . . Combat Hostiles . | . . . Parts Fried . | . . . Impact Corruptions . | . . . Robots Melted . | . . . Combat Hostiles . | . . . Parts Melted . | . . . Heat Transferred . | . . . Parts Sabotaged . | . . . Parts Stolen . | . . . Parts Stripped . | . . . Power Chain Reactions . | . . . Alert | -11 -10 -9 ------- Run | Yrd Mat Mat Peak Influence 80 | 60 . 80 Initial . | . . . Average 10 | 10 . 35 Maximum Alert Level . | . . . Low Security (%) 100 | 100 100 100 Level 1 . | . . . Level 2 . | . . . Level 3 . | . . . Level 4 . | . . . Level 5 . | . . . High Security . | . . . Max Security . | . . . Squads Dispatched 1 | . 1 . Investigation . | . . . Extermination . | . . . Reinforcement 1 | . 1 . Assault . | . . . Garrison . | . . . Intercept . | . . . Searches Triggered . | . . . Construction Impeded . | . . . Haulers Reinforced . | . . . Active Scanning Responses . | . . . Cargo Convoy Interrupts . | . . . Stealth | -11 -10 -9 --------- Run | Yrd Mat Mat Distress Signals 1 | . 1 . Communications Jammed . | . . . Distress Signals . | . . . Times Spotted 5 | . 1 4 Peak Tracking Total 4 | . 3 4 Tactical Retreats . | . . . Traps | -11 -10 -9 ------- Run | Yrd Mat Mat Traps Triggered . | . . . Indirectly . | . . . Trap Hack Attempts . | . . . Triggered . | . . . Disarmed . | . . . Reprogrammed . | . . . Reused . | . . . Traps Extracted . | . . . Installed . | . . . Triggered . | . . . Machines | -11 -10 -9 ---------- Run | Yrd Mat Mat Machines Disabled . | . . . Max in Single Turn . | . . . Machines Repaired . | . . . Machines Dismantled . | . . . Machines Sabotaged . | . . . Overloaded Fab Kills . | . . . Hacking | -11 -10 -9 --------- Run | Yrd Mat Mat Machines Accessed 3 | . 3 . Terminals 2 | . 2 . Fabricators . | . . . Repair Stations . | . . . Recycling Units 1 | . 1 . Scanalyzers . | . . . Garrison Access . | . . . Total Hacks 9 | . 9 . Successful 6 | . 6 . Failed 3 | . 3 . Catastrophic 2 | . 2 . Database Lockouts . | . . . Manual . | . . . Terminals 3 | . 3 . Fabricators . | . . . Repair Stations . | . . . Recycling Units 6 | . 6 . Scanalyzers . | . . . Garrison Access . | . . . Terminal Hacks 1 | . 1 . Zone Layout 1 | . 1 . Fabricator Hacks . | . . . Repair Station Hacks . | . . . Recycling Unit Hacks 5 | . 5 . Recycle Component 1 | . 1 . Process 3 | . 3 . Retrieve Matter 1 | . 1 . Scanalyzer . | . . . Garrison Access Hacks . | . . . Unauthorized Hacks . | . . . Terminals . | . . . Fabricators . | . . . Repair Stations . | . . . Recycling Units . | . . . Scanalyzers . | . . . Garrison Access . | . . . Data Cores Recovered . | . . . Used . | . . . Hacking Detections 2 | . 2 . Full Trace Events . | . . . Feedback Events . | . . . Feedback Blocked . | . . . Robot Schematics Acquired . | . . . Robots Built . | . . . Authchips . | . . . Time . | . . . Total Robot Build Rating . | . . . Part Schematics Acquired . | . . . Parts Built . | . . . Authchips . | . . . Time . | . . . Total Part Build Rating . | . . . Parts Repaired . | . . . Time . | . . . Parts Recycled 1 | . 1 . Recycled Matter 12 | . 12 . Retrieved Matter 12 | . 12 . Retrieved Components . | . . . Parts Scanalyzed . | . . . Part Schematics Acquired . | . . . Parts Damaged . | . . . Bothacking | -11 -10 -9 ------------ Run | Yrd Mat Mat Used RIF Installer . | . . . Robots Hacked . | . . . Non-combat . | . . . Combat . | . . . Robot Hacks Applied . | . . . Relay Couplers Released . | . . . Fabnet Peak Effective % . | . . . Robots Rewired . | . . . Allies Hacked . | . . . Hacks Repelled . | . . . Allies | -11 -10 -9 -------- Run | Yrd Mat Mat Total Allies . | . . . Largest Group . | . . . Highest-Rated Group . | . . . Highest-Rated Ally . | . . . Total Orders . | . . . Ally Attacks . | . . . Total Damage . | . . . Kills . | . . . Allies Corrupted . | . . . Allies Melted . | . . . Intel | -11 -10 -9 ------- Run | Yrd Mat Mat Robot Analysis Total . | . . . Derelict Logs Recovered . | . . . Drone Launches . | . . . Drone Recoveries . | . . . Exploration | -11 -10 -9 ------------- Run | Yrd Mat Mat Turns Passed 1941 | 1146 547 248 Spaces Moved 842 | 556 241 45 Core 36 | 22 . 14 Treads 806 | 534 241 31 Legs . | . . . Wheels . | . . . Hover . | . . . Flight . | . . . Fastest Speed 50 | 50 160 240 Average Speed 188 | 156 220 415 Slowest Speed 800 | 160 240 800 Overloaded Moves . | . . . Propulsion Burnouts . | . . . Robots Hopped . | . . . Cave-ins Triggered . | . . . Exploration Rate (%) 17 | 13 36 3 Regions Visited 2 Branch Regions . Pre-discovered Areas . | . . . Known Exits Taken . | . . . Unknown Exits Taken 2 | 1 1 . Scrap Searched . | . . . Spaces Dug . | . . . Terrain Destroyed . | . . . Melee . | . . . Projectile . | . . . AOE . | . . . Terrain Rammed . | . . . Walls Destroyed . | . . . Machines Disabled . | . . . Actions | -11 -10 -9 --------- Run | Yrd Mat Mat Total 1067 | 734 255 78 Wait 108 | 101 2 5 Move 840 | 555 240 45 Hop . | . . . Pick Up 18 | 10 6 2 Fast Attach 6 | 6 . . Attach 3 | 1 . 2 Detach . | . . . Swap 5 | 1 4 . Drop 5 | 1 2 2 Fire 82 | 59 1 22 Melee . | . . . Ram . | . . . Kick . | . . . Crush . | . . . Escape Stasis . | . . . Rewire . | . . . Trap . | . . . Miscellaneous . | . . . Route ------- -11/Scrapyard -10/Materials -9/Materials History --------- Turn | Location | Event 20 | -11/Scrapyard | Discovered new exit (range 15) 1147 | -11/Scrapyard | Entered Materials 1148 | -10/Materials | Build established: Mutant 1651 | -10/Materials | Discovered new exit (range 4) 1694 | -10/Materials | Entered another Materials area 1694 | -9/Materials | Evolved 2 slots: Power x1, Utility x1 1851 | -9/Materials | Core integrity fell below 50% 1884 | -9/Materials | Lost 5 parts (1p2n2w) 1913 | -9/Materials | Core integrity fell below 20% 1942 | -9/Materials | Destroyed by Y-45 Defender with Heavy Assault Rifle Last Messages --------------- Extracted 17 matter. R-06 Scavenger collects Flight Unit. K-01 Serf collects debris. Acquired Lrg. Matter Pod. R-06 Scavenger collects Flight Unit. T-07 Excavator destroyed. R-06 Scavenger destroyed. Lgt. Treads destroyed. M-13 Machinist repairs Y-45 Defender. Critical hit (Burn: +37). Lgt. Assault Rifle destroyed. Lgt. Treads destroyed. Lgt. Ion Engine destroyed. K-01 Serf collects debris. Lgt. Assault Rifle destroyed. M-13 Machinist repairs Y-45 Defender. Critical hit (Burn: +37). K-01 Serf collects debris. Utility Shielding destroyed. [Achievement: First Step to Greatness] Map ----- +----------------------------------------------------+ | ?????????????????????????????????????????????????? | | ?????????????????????????????????????????????????? | | ?????????????????????????????????????????????????? | | ?????????????????????????????????????????????????? | | ?????????????????????????????????????????????????? | | ?????????????????????????????????????????????????? | | ?????????????????????????????????????????????????? | | ?????????????????????????????????????????????????? | | ?????????????????##+##???????????????????????????? | | ?????????????????# ???????????????????????????? | | ?????????????????# ???????????????????????????? | | ?????????????????#* ???????????????????????????? | | ?????????????????+%% #???????????????????????????? | | ?????????????????#= %#???????????????????????????? | | ?????????????????#^^=#???????????????????????????? | | ?????????????????# !%#???????????????????????????? | | ?????????????????# =|#?###+##????????????????????? | | ?????????????????# # #????????????????????? | | ?????????????????# # #????????????????????? | | ?????????????????# + ????????????????????????? | | ?????????????????# #???????????????????????????? | | ?????????????????# #???????????????????????????? | | ?????????????????# #???????????????????????????? | | ?????????????????# #???????#####???????????????? | | ?????????????????# % ######## ##### #??????? | | ?????????????????# ! Y @ ?????? | | ?????????????????# [ ?????? | | ?????????????????# ######## ##### ???????? | | ?????????????????# #???????#+###???????????????? | | ?????????????????# #???????????????????????????? | | ?????????????????# #???????????????????????????? | | ?????????????????# #???????????????????????????? | | ?????????????????# #???????????????????????????? | | ?????????????????# #???????????????????????????? | | ?????????????????# #???????????????????????????? | | ?????????????????# #???????????????????????????? | | ?????????????????# #???????????????????????????? | | ?????????????????#####???????????????????????????? | | ?????????????????????????????????????????????????? | | ?????????????????????????????????????????????????? | | ?????????????????????????????????????????????????? | | ?????????????????????????????????????????????????? | | | | | | | | | | | | | | | | | +----------------------------------------------------+ Best States ------------- Heat Dissipation 28 Energy Generation 15 Energy Capacity 150 Matter Stores 312 Matter Capacity 450 Sight Range 16 Terrain Scan Range 16 Terrain Scan Density 10 Utility Shielding 33 Evasion (%) 50 Recoil Reduction 2 Item Schematics ----------------- None Robot Schematics ------------------ None Fabricated ------------ Nothing Alien Tech Used ----------------- None Achievements -------------- First Step to Greatness Storm Trooper Uninvited Guest Challenges ------------ None Game ------ Seed DamperArmageddonBasin Manual? 0 Play Time 00:38:41 Cumulative 0.6 hours Start 2025.02.25 @ 14:13:58 End 2025.03.03 @ 21:21:14 Sessions 3 Manual Loads 0 Difficulty Rogue Special Mode None Game No. 1 Rogue 1 Adventurer 0 Explorer 0 Win Type - Total 0 Types 0/0/0/0/0/0/0/0/0 Lore% 0 Gallery% 0 Achievement% 1 Wizard Run 0 Options --------- Layout 1 ASCII 0 Keyboard 0 Movement Arrows Keybinds 0 Fullscreen 1 Font 48/Smallcaps Map View 50x35 Zoom Use 0% Tactical HUD 0 Map Filters NONE Filters NONE Steam 1 RUN: ce4c7204-896e-48da-898e-a56e902caec0